bitfinex-derivatives/quotes_BNBF0:USTF0_20250603
["timestamp","ask_amount","ask_price","bid_price","bid_amount"]
[1748920049543,0.8970988,668.71,668.28,0.29927575]
[1748920049741,0.8971672,668.72,668.28,0.29927575]
[1748920056751,0.8971672,668.72,668.35,1.1182039]
[1748920056950,0.8971672,668.72,668.36,0.29923993]
[1748920057152,0.8971672,668.72,668.36,1.41744383]
[1748920057548,0.8971672,668.72,668.36,0.29923993]
[1748920057850,0.8971672,668.72,668.36,1.41744383]
[1748920058452,0.8971672,668.72,668.36,0.29923993]
[1748920058752,0.8971672,668.72,668.36,1.41744383]
[1748920059951,0.8971672,668.72,668.36,0.29923993]
[1748920060156,0.8971672,668.72,668.36,1.41744383]
[1748920060354,0.8971672,668.72,668.36,0.29923993]
[1748920060559,0.8971672,668.72,668.36,1.41744383]
[1748920061361,0.8971672,668.72,668.36,0.29923993]
[1748920069266,1.099,668.71,668.36,0.29923993]
[1748920072868,1.099,668.71,668.36,1.41508026]
[1748920073069,1.099,668.71,668.36,1.4146786]
[1748920073467,1.099,668.71,668.36,0.29923993]
[1748920076875,1.143,668.7,668.36,0.29923993]
[1748920081476,0.824,668.69,668.36,0.29923993]
[1748920086883,0.864,668.68,668.36,0.29923993]
[1748920099995,1.718,668.69,668.36,0.29923993]
[1748920101894,0.89903548,668.68,668.36,0.29923993]
[1748920102288,1.718,668.69,668.36,0.29923993]
[1748920103295,0.94,668.68,668.36,0.29923993]
[1748920132314,2.693,668.69,668.36,0.29923993]
[1748920136219,0.763,668.68,668.36,0.29923993]
[1748920163238,2.693,668.69,668.36,0.29923993]
[1748920164433,0.89769795,668.68,668.36,0.29923993]
[1748920164632,2.693,668.69,668.36,0.29923993]
[1748920166034,1.075,668.68,668.36,0.29923993]
[1748920166640,0.89770072,668.67,668.36,0.29923993]
[1748920166832,0.89767505,668.66,668.36,0.29923993]
[1748920167037,1.075,668.68,668.36,0.29923993]
[1748920170642,0.89738577,668.67,668.36,0.29923993]
[1748920170846,1.075,668.68,668.36,0.29923993]
[1748920173243,0.8973882,668.67,668.36,0.29923993]
[1748920173547,1.075,668.68,668.36,0.29923993]
[1748920176648,0.26020832,668.62,668.36,0.29923993]
[1748920183656,0.89716065,668.61,668.36,0.29923993]
[1748920183856,0.26020832,668.62,668.36,0.29923993]
[1748920184350,0.89724351,668.61,668.36,0.29923993]
[1748920184550,0.26020832,668.62,668.36,0.29923993]
[1748920184551,0.89724409,668.6,668.36,0.29923993]
[1748920184749,0.26020832,668.62,668.36,0.29923993]
[1748920185351,0.8972199,668.61,668.36,0.29923993]
[1748920185550,0.26020832,668.62,668.36,0.29923993]
[1748920186954,0.782,668.61,668.36,0.29923993]
[1748920187958,0.89712871,668.6,668.36,0.29923993]
[1748920188255,0.782,668.61,668.36,0.29923993]
[1748920188857,0.89683708,668.6,668.36,0.29923993]
[1748920189051,0.782,668.61,668.36,0.29923993]
[1748920189857,0.89677953,668.6,668.36,0.29923993]
[1748920190053,0.782,668.61,668.36,0.29923993]
[1748920191658,0.89775293,668.6,668.36,0.29923993]
[1748920191859,0.89775309,668.59,668.36,0.29923993]
[1748920192059,0.89775374,668.58,668.36,0.29923993]
[1748920192359,0.782,668.61,668.36,0.29923993]
[1748920192955,0.8977453,668.6,668.36,0.29923993]
[1748920196463,0.89762689,668.59,668.36,0.29923993]
[1748920197260,1.48482678,668.46,668.36,0.29923993]
[1748920197663,1.48482678,668.47,667.66,1.11690784]
[1748920197859,1.10908403,668.3,667.68,0.29954469]
[1748920198561,1.48482678,668.56,667.68,0.29954469]
[1748920198762,1.1085541,668.38,667.68,0.29954469]
[1748920199660,2.38245367,668.59,667.68,0.29954469]
[1748920199661,1.1085541,668.4,667.68,0.29954469]
[1748920200470,2.492,668.39,667.68,0.29954469]
[1748920200964,1.034,668.38,667.68,0.29954469]
[1748920201356,1.312,668.37,667.68,0.29954469]
[1748920201762,1.069,668.36,667.68,0.29954469]
[1748920208067,0.694,668.35,667.68,0.29954469]
[1748920208870,0.694,668.35,667.69,1.11367906]
[1748920209070,0.694,668.35,667.71,1.11367906]
[1748920209266,0.694,668.35,667.72,1.11367906]
[1748920209467,0.694,668.35,667.73,0.29952226]
[1748920212776,0.694,668.35,667.74,1.1140008]
[1748920212976,0.694,668.35,667.75,0.29951329]
[1748920214584,1.044,668.34,667.75,0.29951329]
[1748920217188,1.044,668.34,667.75,1.41351409]
[1748920217783,1.044,668.34,667.75,1.41397036]
[1748920218584,1.044,668.34,667.75,0.29951329]
[1748920223285,0.983,668.33,667.75,0.29951329]
[1748920231095,1.10853404,668.32,667.75,0.29951329]
[1748920232193,0.983,668.33,667.75,0.29951329]
[1748920232398,1.10853404,668.32,667.75,0.29951329]
[1748920232693,0.983,668.33,667.75,0.29951329]
[1748920236898,1.97001923,668.32,667.75,0.29951329]
[1748920237101,1.076,668.32,667.75,0.29951329]
[1748920237496,0.89410672,668.31,667.75,0.29951329]
[1748920237802,1.076,668.32,667.75,0.29951329]
[1748920237995,0.89396457,668.31,667.75,0.29951329]
[1748920238202,1.076,668.32,667.75,0.29951329]
[1748920239504,0.8940093,668.31,667.75,0.29951329]
[1748920239702,1.076,668.32,667.75,0.29951329]
[1748920239899,0.89400903,668.31,667.75,0.29951329]
[1748920240095,1.076,668.32,667.75,0.29951329]
[1748920240300,0.89401316,668.31,667.75,0.29951329]
[1748920240502,0.89403656,668.3,667.75,0.29951329]
[1748920240698,1.076,668.32,667.75,0.29951329]
[1748920241304,1.88916185,668.31,667.75,0.29951329]
[1748920241498,0.89915645,668.3,667.75,0.29951329]
[1748920241699,0.89915663,668.29,667.75,0.29951329]
[1748920241904,0.99,668.31,667.75,0.29951329]
[1748920242099,0.89915477,668.3,667.75,0.29951329]
[1748920242303,0.99,668.31,667.75,0.29951329]
[1748920242502,0.89915487,668.3,667.75,0.29951329]
[1748920242702,0.99,668.31,667.75,0.29951329]
[1748920242900,1.10848359,668.23,667.75,0.29951329]
[1748920243202,1.10848359,668.2,667.75,0.29951329]
[1748920243500,1.10853177,668.2,667.75,0.29951329]
[1748920243705,1.79832589,668.19,667.75,0.29951329]
[1748920243906,0.89915457,668.19,667.75,0.29951329]
[1748920244302,0.899174,668.18,667.75,0.29951329]
[1748920244510,0.89917668,668.17,667.75,0.29951329]
[1748920244802,0.89915457,668.19,667.75,0.29951329]
[1748920245007,2.00768634,668.19,667.75,0.29951329]
[1748920245202,0.8992528,668.18,667.75,0.29951329]
[1748920245405,0.89927747,668.17,667.75,0.29951329]
[1748920245600,0.89915457,668.19,667.75,0.29951329]
[1748920248503,1.79874837,668.18,667.75,0.29951329]
[1748920248708,0.9008277,668.17,667.75,0.29951329]
[1748920248907,0.89937275,668.18,667.75,0.29951329]
[1748920249210,0.90082673,668.17,667.75,0.29951329]
[1748920249404,0.89937275,668.18,667.75,0.29951329]
[1748920251110,0.90082671,668.17,667.75,0.29951329]
[1748920251306,0.89937275,668.18,667.75,0.29951329]
[1748920252205,0.90084461,668.17,667.75,0.29951329]
[1748920252406,0.89937275,668.18,667.75,0.29951329]
[1748920252611,0.90083053,668.17,667.75,0.29951329]
[1748920252811,0.89937275,668.18,667.75,0.29951329]
[1748920253510,0.90084922,668.17,667.75,0.29951329]
[1748920253710,0.89937275,668.18,667.75,0.29951329]
[1748920254507,0.771,668.17,667.75,0.29951329]
[1748920256110,1.114,668.16,667.75,0.29951329]
[1748920259307,0.955,668.15,667.75,0.29951329]
[1748920262810,0.774,668.14,667.75,0.29951329]
[1748920265109,1.11053027,668.12,667.75,0.29951329]
[1748920265309,0.90146302,668.11,667.75,0.29951329]
[1748920266117,1.11053027,668.1,667.75,0.29951329]
[1748920266316,0.90150605,668.1,667.75,0.29951329]
[1748920268115,0.90151426,668.09,667.75,0.29951329]
[1748920268314,0.90150605,668.1,667.75,0.29951329]
[1748920269821,0.90138561,668.09,667.75,0.29951329]
[1748920270619,0.90137908,668.08,667.75,0.29951329]
[1748920270822,0.90138561,668.09,667.75,0.29951329]
[1748920273023,0.9015465,668.08,667.75,0.29951329]
[1748920273321,0.90138561,668.09,667.75,0.29951329]
[1748920273823,0.9015493,668.08,667.75,0.29951329]
[1748920274019,0.9015502,668.07,667.75,0.29951329]
[1748920274225,0.90138561,668.09,667.75,0.29951329]
[1748920274829,1.37345794,668.08,667.75,0.29951329]
[1748920275023,0.90154786,668.07,667.75,0.29951329]
[1748920275220,0.90138561,668.09,667.75,0.29951329]
[1748920275627,1.37287763,668.08,667.75,0.29951329]
[1748920275930,1.37284801,668.07,667.75,0.29951329]
[1748920276125,1.10817606,668.01,667.75,0.29951329]
[1748920276325,0.9010808,668.0,667.75,0.29951329]
[1748920276526,1.10817606,668.01,667.75,0.29951329]
[1748920276830,0.90105154,668.0,667.75,0.29951329]
[1748920277031,0.90106027,667.99,667.75,0.29951329]
[1748920277233,1.10817606,668.05,667.75,0.29951329]
[1748920277627,0.47174935,668.07,667.75,0.29951329]
[1748920277831,0.90104043,668.06,667.75,0.29951329]
[1748920278027,0.47174935,668.07,667.75,0.29951329]
[1748920278533,0.47171856,668.06,667.75,0.29951329]
[1748920278727,0.90104007,668.06,667.75,0.29951329]
[1748920278928,1.57992541,668.07,667.75,0.29951329]
[1748920279124,1.10817606,668.05,667.75,0.29951329]
[1748920279330,2.0091979,668.04,667.75,0.29951329]
[1748920279530,0.47173123,668.03,667.75,0.29951329]
[1748920279728,1.10817606,668.04,667.75,0.29951329]
[1748920279928,0.90102236,668.03,667.75,0.29951329]
[1748920280127,1.10817606,668.05,667.75,0.29951329]
[1748920280633,0.47173162,668.04,667.75,0.29951329]
[1748920280829,1.10817606,668.05,667.75,0.29951329]
[1748920281134,2.00919849,668.03,667.75,0.29951329]
[1748920281328,1.10817606,668.02,667.75,0.29951329]
[1748920281834,2.00919849,668.03,667.75,0.29951329]
[1748920282027,2.00917813,668.02,667.75,0.29951329]
[1748920282233,0.90102243,668.03,667.75,0.29951329]
[1748920282531,0.47174544,668.02,667.75,0.29951329]
[1748920282829,1.10817606,668.0,667.75,0.29951329]
[1748920283334,1.10817606,668.01,667.75,0.29951329]
[1748920283532,1.10802065,668.01,667.75,0.29951329]
[1748920284435,2.90942099,668.0,667.75,0.29951329]
[1748920284635,2.00871679,668.0,667.75,0.29951329]
[1748920285332,1.10802065,667.99,667.75,0.29951329]
[1748920285736,1.10802065,667.98,667.75,0.29951329]
[1748920285936,1.10802065,667.99,667.75,0.29951329]
[1748920286239,0.90068466,667.98,667.75,0.29951329]
[1748920286535,1.012,667.97,667.75,0.29951329]
[1748920286836,0.90039915,667.96,667.75,0.29951329]
[1748920287229,0.90039089,667.95,667.75,0.29951329]
[1748920287429,0.47169146,667.94,667.75,0.29951329]
[1748920287630,0.9003923,667.93,667.75,0.29951329]
[1748920287835,0.90039915,667.96,667.75,0.29951329]
[1748920288331,1.37208241,667.95,667.75,0.29951329]
[1748920288637,0.90039824,667.95,667.75,0.29951329]
[1748920288937,1.80085997,667.94,667.75,0.29951329]
[1748920289238,0.90043181,667.94,667.75,0.29951329]
[1748920289436,0.90043117,667.93,667.75,0.29951329]
[1748920289637,0.90043181,667.94,667.75,0.29951329]
[1748920290535,0.90034325,667.93,667.75,0.29951329]
[1748920290732,0.90043181,667.94,667.75,0.29951329]
[1748920290935,0.90033825,667.93,667.75,0.29951329]
[1748920291136,0.90043181,667.94,667.75,0.29951329]
[1748920291331,0.90033924,667.93,667.75,0.29951329]
[1748920291536,0.90033682,667.92,667.75,0.29951329]
[1748920291739,0.90033681,667.91,667.75,0.29951329]
[1748920291941,0.90043181,667.94,667.75,0.29951329]
[1748920292135,0.90033232,667.93,667.75,0.29951329]
[1748920292341,0.90034961,667.92,667.75,0.29951329]
[1748920292640,0.90043181,667.94,667.75,0.29951329]
[1748920292834,0.90030719,667.93,667.75,0.29951329]
[1748920293335,0.90030833,667.92,667.75,0.29951329]
[1748920293540,0.90030719,667.93,667.75,0.29951329]
[1748920293753,0.90030557,667.92,667.75,0.29951329]
[1748920294039,0.90030719,667.93,667.75,0.29951329]
[1748920294441,0.90030643,667.92,667.75,0.29951329]
[1748920294641,0.90030719,667.93,667.75,0.29951329]
[1748920294842,0.9003042,667.92,667.75,0.29951329]
[1748920295142,0.90030408,667.91,667.75,0.29951329]
[1748920295342,0.90030719,667.93,667.75,0.29951329]
[1748920295542,0.9003054,667.9,667.75,0.29951329]
[1748920296341,0.90038984,667.89,667.75,0.29951329]
[1748920296540,0.9003054,667.9,667.75,0.29951329]
[1748920297942,0.90039456,667.89,667.75,0.29951329]
[1748920298444,0.90039456,667.89,667.1,0.47567791]
[1748920298640,0.90024494,667.88,667.11,0.29980063]
[1748920298837,0.90039456,667.89,667.11,0.29980063]
[1748920299242,0.47168682,667.88,667.11,0.29980063]
[1748920299441,0.90039456,667.89,667.11,0.29980063]
[1748920300043,0.47167343,667.88,667.11,0.29980063]
[1748920300239,0.90039456,667.89,667.11,0.29980063]
[1748920300945,1.10732529,667.87,667.11,0.29980063]
[1748920301140,1.57899839,667.86,667.11,0.29980063]
[1748920301337,0.89978951,667.85,667.11,0.29980063]
[1748920301538,0.89978814,667.84,667.11,0.29980063]
[1748920301738,1.318,667.84,667.11,0.29980063]
[1748920302140,0.89976301,667.83,667.11,0.29980063]
[1748920302344,1.318,667.84,667.11,0.29980063]
[1748920302543,0.89976294,667.83,667.11,0.29980063]
[1748920302742,1.318,667.84,667.11,0.29980063]
[1748920303143,0.47156539,667.83,667.11,0.29980063]
[1748920303346,1.318,667.84,667.11,0.29980063]
[1748920304543,0.89940684,667.83,667.11,0.29980063]
[1748920304845,1.318,667.84,667.11,0.29980063]
[1748920304846,0.765,667.82,667.11,0.29980063]
[1748920305446,1.78340566,667.81,667.11,0.29980063]
[1748920305640,0.884,667.81,667.11,0.29980063]
[1748920305838,0.89940573,667.8,667.11,0.29980063]
[1748920306148,0.959,667.8,667.11,0.29980063]
[1748920306347,0.89940584,667.79,667.11,0.29980063]
[1748920306537,0.959,667.8,667.11,0.29980063]
[1748920306742,0.89940588,667.79,667.11,0.29980063]
[1748920307040,0.959,667.8,667.11,0.29980063]
[1748920307645,0.89938823,667.79,667.11,0.29980063]
[1748920307842,0.959,667.8,667.11,0.29980063]
[1748920308143,0.89938538,667.79,667.11,0.29980063]
[1748920308348,0.959,667.8,667.11,0.29980063]
[1748920309247,0.89938212,667.79,667.11,0.29980063]
[1748920309448,0.959,667.8,667.11,0.29980063]
[1748920310749,0.89934582,667.79,667.11,0.29980063]
[1748920311147,0.959,667.8,667.11,0.29980063]
[1748920311148,0.89954409,667.78,667.11,0.29980063]
[1748920311348,0.89953284,667.77,667.11,0.29980063]
[1748920311549,0.89953686,667.76,667.11,0.29980063]
[1748920311749,0.959,667.8,667.11,0.29980063]
[1748920311945,0.89953618,667.79,667.11,0.29980063]
[1748920312151,0.959,667.8,667.11,0.29980063]
[1748920313053,0.89949946,667.79,667.11,0.29980063]
[1748920313255,0.959,667.8,667.11,0.29980063]
[1748920313454,0.668,667.78,667.11,0.29980063]
[1748920314153,0.89950145,667.77,667.11,0.29980063]
[1748920314353,0.668,667.78,667.11,0.29980063]
[1748920315153,0.89952786,667.77,667.11,0.29980063]
[1748920315353,0.668,667.78,667.11,0.29980063]
[1748920316249,0.89957461,667.77,667.11,0.29980063]
[1748920316555,0.89957588,667.76,667.11,0.29980063]
[1748920316752,0.668,667.78,667.11,0.29980063]
[1748920317152,1.79928624,667.77,667.11,0.29980063]
[1748920317449,0.89963833,667.76,667.11,0.29980063]
[1748920317653,0.89965418,667.77,667.11,0.29980063]
[1748920318053,1.97965418,667.77,667.11,0.29980063]
[1748920318449,0.89874268,667.76,667.11,0.29980063]
[1748920318654,1.97965418,667.77,667.11,0.29980063]
[1748920319253,0.89872646,667.76,667.11,0.29980063]
[1748920319455,0.856,667.76,667.11,0.29980063]
[1748920320052,0.89872675,667.75,667.11,0.29980063]
[1748920320256,0.856,667.76,667.11,0.29980063]
[1748920320752,1.79710107,667.75,667.11,0.29980063]
[1748920320952,0.89855184,667.75,667.11,0.29980063]
[1748920321152,0.89837086,667.74,667.11,0.29980063]
[1748920321359,0.46921723,667.73,667.11,0.29980063]
[1748920321555,1.10656492,667.69,667.11,0.29980063]
[1748920321753,1.36811791,667.68,667.11,0.29980063]
[1748920321955,0.89887999,667.67,667.11,0.29980063]
[1748920322262,1.36807141,667.66,667.11,0.29980063]
[1748920322460,2.00546796,667.68,667.11,0.29980063]
[1748920322659,0.46920318,667.67,667.11,0.29980063]
[1748920322863,0.46920057,667.66,667.11,0.29980063]
[1748920323058,0.89887892,667.67,667.11,0.29980063]
[1748920323257,0.8989064,667.66,667.11,0.29980063]
[1748920323458,0.89887892,667.67,667.11,0.29980063]
[1748920323459,0.46920895,667.65,667.11,0.29980063]
[1748920323662,0.89887759,667.64,667.11,0.29980063]
[1748920323856,0.46920244,667.63,667.11,0.29980063]
[1748920324058,0.89887892,667.67,667.11,0.29980063]
[1748920324255,0.46919937,667.66,667.11,0.29980063]
[1748920324455,0.89887892,667.67,667.11,0.29980063]
[1748920324661,0.46919185,667.66,667.11,0.29980063]
[1748920324858,1.36570562,667.65,667.11,0.29980063]
[1748920325061,0.89651209,667.64,667.11,0.29980063]
[1748920325257,0.89887892,667.67,667.11,0.29980063]
[1748920325463,0.46913477,667.66,667.11,0.29980063]
[1748920325669,0.46912157,667.65,667.11,0.29980063]
[1748920325857,0.89887892,667.67,667.11,0.29980063]
[1748920326060,1.10665179,667.64,667.11,0.29980063]
[1748920326255,1.10665179,667.63,667.11,0.29980063]
[1748920326455,1.10665179,667.64,667.11,0.29980063]
[1748920326662,0.4691062,667.63,667.11,0.29980063]
[1748920326863,0.89635425,667.62,667.11,0.29980063]
[1748920327164,1.36546743,667.61,667.11,0.29980063]
[1748920327361,1.10529155,667.65,667.11,0.29980063]
[1748920327563,1.10529155,667.66,667.11,0.29980063]
[1748920328158,0.89887892,667.67,667.11,0.29980063]
[1748920328159,0.89744115,667.65,667.11,0.29980063]
[1748920328564,1.36659537,667.64,667.11,0.29980063]
[1748920328764,0.46911857,667.63,667.11,0.29980063]
[1748920328960,1.36658029,667.62,667.11,0.29980063]
[1748920329160,0.89744115,667.65,667.11,0.29980063]
[1748920329461,1.36658754,667.64,667.11,0.29980063]
[1748920329760,0.46911914,667.63,667.11,0.29980063]
[1748920329965,0.46911878,667.62,667.11,0.29980063]
[1748920330168,0.89744115,667.65,667.11,0.29980063]
[1748920330562,0.89746951,667.64,667.11,0.29980063]
[1748920330763,0.46912325,667.63,667.11,0.29980063]
[1748920330963,0.89746765,667.62,667.11,0.29980063]
[1748920331265,0.89744115,667.65,667.11,0.29980063]
[1748920331462,1.10402467,667.47,667.11,0.29980063]
[1748920331659,1.10402467,667.51,667.11,0.29980063]
[1748920331862,1.10402467,667.46,667.11,0.29980063]
[1748920332064,1.10402467,667.47,667.11,0.29980063]
[1748920332564,1.10402467,667.49,667.11,0.29980063]
[1748920332866,1.10402467,667.38,667.11,0.29980063]
[1748920333269,1.10402467,667.4,667.11,0.29980063]
[1748920333564,1.3674959,667.39,667.11,0.29980063]
[1748920333865,2.26602874,667.38,667.11,0.29980063]
[1748920334168,0.89845865,667.38,667.11,0.29980063]
[1748920334367,0.89862589,667.37,667.11,0.29980063]
[1748920334563,0.89845865,667.38,667.11,0.29980063]
[1748920334762,0.46914652,667.37,667.11,0.29980063]
[1748920335064,0.89845865,667.38,667.11,0.29980063]
[1748920335065,1.36781466,667.36,667.11,0.29980063]
[1748920335269,0.89872641,667.35,667.11,0.29980063]
[1748920335468,0.89845865,667.38,667.11,0.29980063]
[1748920335667,0.89874534,667.34,667.11,0.29980063]
[1748920335963,0.89845865,667.38,667.11,0.29980063]
[1748920336366,0.46920988,667.37,667.11,0.29980063]
[1748920336566,1.3684917,667.36,667.11,0.29980063]
[1748920336766,0.89845865,667.38,667.11,0.29980063]
[1748920337970,0.89942228,667.37,667.11,0.29980063]
[1748920338166,0.89845865,667.38,667.11,0.29980063]
[1748920338366,0.46927381,667.37,667.11,0.29980063]
[1748920338573,0.46928019,667.36,667.11,0.29980063]
[1748920338770,0.46928142,667.35,667.11,0.29980063]
[1748920338967,1.36873367,667.34,667.11,0.29980063]
[1748920339170,0.942,667.35,667.11,0.29980063]
[1748920339474,0.46929077,667.34,667.11,0.29980063]
[1748920339668,0.942,667.35,667.11,0.29980063]
[1748920339872,1.36865218,667.34,667.11,0.29980063]
[1748920340074,1.36865236,667.33,667.11,0.29980063]
[1748920340272,0.942,667.35,667.11,0.29980063]
[1748920340273,0.46930342,667.32,667.11,0.29980063]
[1748920340473,0.942,667.35,667.11,0.29980063]
[1748920340769,0.46930679,667.34,667.11,0.29980063]
[1748920341073,0.942,667.35,667.11,0.29980063]
[1748920341468,0.89936771,667.34,667.11,0.29980063]
[1748920341671,0.942,667.35,667.11,0.29980063]
[1748920342470,0.89937215,667.34,667.11,0.29980063]
[1748920342671,0.8993884,667.33,667.11,0.29980063]
[1748920342868,0.942,667.35,667.11,0.29980063]
[1748920343073,0.89941391,667.34,667.11,0.29980063]
[1748920343368,0.89947755,667.33,667.11,0.29980063]
[1748920343572,0.89947714,667.32,667.11,0.29980063]
[1748920343767,0.89947788,667.32,667.11,0.29980063]
[1748920344569,0.8992226,667.31,667.11,0.29980063]
[1748920344774,0.89947788,667.32,667.11,0.29980063]
[1748920344775,1.36844956,667.3,667.11,0.29980063]
[1748920345075,0.89922818,667.29,667.11,0.29980063]
[1748920345270,0.89947788,667.32,667.11,0.29980063]
[1748920345477,1.36869951,667.31,667.11,0.29980063]
[1748920345771,0.89947788,667.32,667.11,0.29980063]
[1748920346277,0.89923529,667.31,667.11,0.29980063]
[1748920346469,0.89923529,667.3,667.11,0.29980063]
[1748920346672,0.89947788,667.32,667.11,0.29980063]
[1748920346867,0.4695179,667.31,667.11,0.29980063]
[1748920347066,0.89947788,667.32,667.11,0.29980063]
[1748920347468,0.89933882,667.31,667.11,0.29980063]
[1748920347674,0.89947788,667.32,667.11,0.29980063]
[1748920347876,1.36886345,667.31,667.11,0.29980063]
[1748920348177,0.89912478,667.3,667.11,0.29980063]
[1748920348378,0.46940782,667.29,667.11,0.29980063]
[1748920348579,0.89934097,667.31,667.11,0.29980063]
[1748920348873,1.10081938,667.28,667.11,0.29980063]
[1748920349075,0.89934097,667.31,667.11,0.29980063]
[1748920349371,1.09994359,667.26,667.11,0.29980063]
[1748920349577,1.09994359,667.27,667.11,0.29980063]
[1748920349878,1.09994359,667.26,667.11,0.29980063]
[1748920350375,1.09994359,667.28,667.11,0.29980063]
[1748920350573,0.88003204,667.27,667.11,0.29980063]
[1748920350774,1.76006408,667.27,667.11,0.29980063]
[1748920350978,0.88003214,667.26,667.11,0.29980063]
[1748920351176,1.76006408,667.27,667.11,0.29980063]
[1748920351677,1.76006408,667.27,666.28,0.26080896]
[1748920351869,1.76006408,667.27,666.3,0.30016509]
[1748920352075,0.88003256,667.26,666.3,0.30016509]
[1748920352477,1.76006408,667.27,666.3,0.30016509]
[1748920353280,1.09885328,667.23,666.3,0.30016509]
[1748920353678,1.09885328,667.24,666.3,0.30016509]
[1748920354276,1.09885328,667.25,666.3,0.30016509]
[1748920354577,0.87983611,667.24,666.3,0.30016509]
[1748920354881,0.8797449,667.23,666.3,0.30016509]
[1748920355080,0.87969964,667.22,666.3,0.30016509]
[1748920355383,0.87970697,667.21,666.3,0.30016509]
[1748920355776,0.87973133,667.2,666.3,0.30016509]
[1748920355981,0.87970922,667.19,666.3,0.30016509]
[1748920356183,0.87970445,667.18,666.3,0.30016509]
[1748920356383,1.09885328,667.18,666.3,0.30016509]
[1748920356582,1.09810861,667.15,666.3,0.30016509]
[1748920356781,1.09810861,667.19,666.3,0.30016509]
[1748920356982,1.09810861,667.17,666.3,0.30016509]
[1748920357383,0.87867293,667.16,666.3,0.30016509]
[1748920357581,1.09810861,667.19,666.3,0.30016509]
[1748920358183,1.97678483,667.18,666.3,0.30016509]
[1748920358478,1.75735144,667.17,666.3,0.30016509]
[1748920358681,0.87867369,667.17,666.3,0.30016509]
[1748920359080,0.26090379,666.96,666.3,0.30016509]
[1748920374100,1.76461872,666.95,666.3,0.30016509]
[1748920374303,0.88230717,666.95,666.3,0.30016509]
[1748920374499,0.88231233,666.94,666.3,0.30016509]
[1748920374701,0.88230717,666.95,666.3,0.30016509]
[1748920374901,0.8823132,666.94,666.3,0.30016509]
[1748920375102,1.76462113,666.93,666.3,0.30016509]
[1748920375301,0.88230717,666.95,666.3,0.30016509]
[1748920375498,0.88231393,666.94,666.3,0.30016509]
[1748920375700,0.719,666.94,666.3,0.30016509]
[1748920376102,0.8823635,666.93,666.3,0.30016509]
[1748920376695,0.4739875,666.92,666.3,0.30016509]
[1748920376901,0.8823635,666.93,666.3,0.30016509]
[1748920377101,0.90153485,666.91,666.3,0.30016509]
[1748920377696,1.37551277,666.9,666.3,0.30016509]
[1748920377905,0.47398015,666.89,666.3,0.30016509]
[1748920378100,0.90153485,666.91,666.3,0.30016509]
[1748920378101,0.47398018,666.88,666.3,0.30016509]
[1748920378301,0.90153485,666.91,666.3,0.30016509]
[1748920378602,0.47397781,666.9,666.3,0.30016509]
[1748920378798,0.90153485,666.91,666.3,0.30016509]
[1748920379196,0.90287621,666.9,666.3,0.30016509]
[1748920379404,1.99854719,666.91,666.3,0.30016509]
[1748920379598,1.37692178,666.9,666.3,0.30016509]
[1748920379900,0.47401234,666.89,666.3,0.30016509]
[1748920380202,0.90290617,666.9,666.3,0.30016509]
[1748920380402,0.90291305,666.89,666.3,0.30016509]
[1748920380602,0.90290617,666.9,666.3,0.30016509]
[1748920380998,0.90300888,666.89,666.3,0.30016509]
[1748920381200,0.90295709,666.88,666.3,0.30016509]
[1748920381502,0.47405314,666.87,666.3,0.30016509]
[1748920381701,0.90295709,666.88,666.3,0.30016509]
[1748920381899,0.90293378,666.87,666.3,0.30016509]
[1748920382106,0.9029499,666.86,666.3,0.30016509]
[1748920382305,1.37701364,666.86,666.3,0.30016509]
[1748920382499,0.9029499,666.86,666.3,0.30016509]
[1748920382702,1.37722195,666.85,666.3,0.30016509]
[1748920382900,0.90308185,666.85,666.3,0.30016509]
[1748920383103,1.80625515,666.84,666.3,0.30016509]
[1748920383304,0.90309288,666.84,666.3,0.30016509]
[1748920383808,0.90316801,666.83,666.3,0.30016509]
[1748920384005,0.90309288,666.84,666.3,0.30016509]
[1748920384200,0.47423316,666.83,666.3,0.30016509]
[1748920384411,0.90309288,666.84,666.3,0.30016509]
[1748920384608,0.474265,666.83,666.3,0.30016509]
[1748920384813,0.90309288,666.84,666.3,0.30016509]
[1748920385510,0.90340944,666.83,666.3,0.30016509]
[1748920385810,0.90340958,666.82,666.3,0.30016509]
[1748920386110,0.90381896,666.81,666.3,0.30016509]
[1748920386409,0.90309288,666.84,666.3,0.30016509]
[1748920386610,0.90381328,666.83,666.3,0.30016509]
[1748920387906,0.90385312,666.82,666.3,0.30016509]
[1748920388111,0.90381328,666.83,666.3,0.30016509]
[1748920388608,0.90384769,666.82,666.3,0.30016509]
[1748920389306,0.90383604,666.81,666.3,0.30016509]
[1748920389611,0.90384769,666.82,666.3,0.30016509]
[1748920389810,0.90343091,666.81,666.3,0.30016509]
[1748920390203,0.9033982,666.8,666.3,0.30016509]
[1748920390408,0.90337865,666.79,666.3,0.30016509]
[1748920390610,0.90343091,666.81,666.3,0.30016509]
[1748920391609,0.90315351,666.8,666.3,0.30016509]
[1748920391807,0.90315102,666.79,666.3,0.30016509]